fUSD/lending_fUSD_20241122
["ID","MTS","AMOUNT","RATE_DAILY","PERIOD"]
[343034293,1732299045938,-506.97102209,0.00083399,120]
[343034294,1732299045947,-505.65609292,0.00083399,120]
[343034295,1732299045956,-548.1689054,0.00083399,120]
[343034296,1732299045965,-506.00648582,0.00083399,120]
[343034297,1732299045974,-508.81019671,0.00083399,120]
[343034298,1732299045983,-502.16841728,0.00083399,120]
[343034299,1732299045992,-385.84434376,0.00083399,120]
[343034300,1732299046002,-500.0,0.00083399,120]
[343034301,1732299046014,-549.30064399,0.00083399,120]
[343034302,1732299046023,-500.0,0.00083399,120]
[343034303,1732299046032,-508.51957542,0.00083399,120]
[343034304,1732299046041,-507.7452401,0.00083399,120]
[343034305,1732299046050,-501.32487949,0.00083399,120]
[343034306,1732299046059,-502.02280717,0.00083399,120]
[343034307,1732299046068,-509.16317945,0.00083399,120]
[343034308,1732299046078,-505.54947486,0.00083399,120]
[343034309,1732299046087,-500.0,0.00083399,120]
[343034310,1732299046096,-500.0,0.00083399,120]
[343034311,1732299046106,-500.0,0.00083399,120]
[343034312,1732299046115,-505.19728793,0.00083399,120]
[343034313,1732299046123,-522.44549368,0.00083399,120]
[343034314,1732299046132,-500.0,0.00083399,120]
[343034315,1732299046141,-500.0,0.00083399,120]
[343034316,1732299046150,-602.92398132,0.00083399,120]
[343034317,1732299046159,-500.0,0.00083399,120]
[343034318,1732299046168,-500.0,0.00083399,120]
[343034319,1732299046177,-500.0,0.00083399,120]
[343034320,1732299046187,-391.17180438,0.00083399,120]
[343034321,1732299046196,-500.0,0.00083399,120]
[343034322,1732299046205,-500.0,0.00083399,120]
[343034323,1732299046215,-500.0,0.00083399,120]
[343034324,1732299046223,-507.11006937,0.00083399,120]
[343034325,1732299046233,-500.84572751,0.00083399,120]
[343034326,1732299046242,-500.0,0.00083399,120]
[343034327,1732299046251,-500.0,0.00083399,120]
[343034328,1732299046262,-500.0,0.00083399,120]
[343034329,1732299046273,-500.0,0.00083399,120]
[343034330,1732299046286,-500.0,0.00083399,120]
[343034331,1732299046295,-500.0,0.00083399,120]
[343034332,1732299046305,-500.0,0.00083399,120]
[343034333,1732299046314,-500.0,0.00083399,120]
[343034334,1732299046324,-506.01562174,0.00083399,120]
[343034335,1732299046333,-500.0,0.00083399,120]
[343034336,1732299046343,-502.69905876,0.00083399,120]
[343034337,1732299046352,-503.37286518,0.00083399,120]
[343034338,1732299046361,-499.84353676,0.00083399,120]
[343034339,1732299046370,-500.0,0.00083399,120]
[343034340,1732299046379,-503.5753598,0.00083399,120]
[343034341,1732299046388,-500.0,0.00083399,120]
[343034342,1732299046397,-595.25276789,0.00083399,120]
[343034343,1732299046407,-502.66531772,0.00083399,120]
[343034344,1732299046416,-500.0,0.00083399,120]
[343034345,1732299046425,-500.0,0.00083399,120]
[343034346,1732299046434,-504.02742292,0.00083399,120]
[343034347,1732299046443,-500.0,0.00083399,120]
[343034348,1732299046452,-500.0,0.00083399,120]
[343034349,1732299046461,-614.14359215,0.00083399,120]
[343034350,1732299046470,-500.0,0.00083399,120]
[343034351,1732299046478,-500.0,0.00083399,120]
[343034352,1732299046487,-501.36457236,0.00083399,120]
[343034353,1732299046496,-500.0,0.00083399,120]
[343034354,1732299046505,-500.0,0.00083399,120]
[343034355,1732299046523,-500.0,0.00083399,120]
[343034356,1732299046532,-500.0,0.00083399,120]
[343034357,1732299046623,-503.77368227,0.00083399,7]
[343034358,1732299046633,-500.0,0.00083399,120]
[343034359,1732299046643,-500.0,0.00083399,120]
[343034360,1732299046652,-502.05561414,0.00083399,120]
[343034361,1732299046661,-500.0,0.00083399,120]
[343034362,1732299046671,-500.0,0.00083399,120]
[343034363,1732299046681,-500.0,0.00083399,120]
[343034364,1732299046690,-500.0,0.00083399,120]
[343034365,1732299046699,-500.0,0.00083399,120]
[343034366,1732299046708,-514.4943912,0.00083399,120]
[343034367,1732299046717,-501.60286309,0.00083399,120]
[343034368,1732299046727,-500.0,0.00083399,120]
[343034369,1732299046736,-1000.0,0.00083399,120]
[343034370,1732299046746,-500.36152134,0.00083399,120]
[343034371,1732299046755,-500.0,0.00083399,120]
[343034372,1732299046770,-500.0,0.00083399,120]
[343034373,1732299046779,-500.0,0.00083399,120]
[343034374,1732299046788,-500.63388996,0.00083399,120]
[343034375,1732299046797,-500.0,0.00083399,120]
[343034376,1732299046809,-500.0,0.00083399,120]
[343034377,1732299046818,-500.4399402,0.00083399,120]
[343034378,1732299046828,-502.39515931,0.00083399,120]
[343034379,1732299046837,-500.0,0.00083399,120]
[343034380,1732299046846,-592.02730042,0.00083399,120]
[343034381,1732299046856,-500.0,0.00083399,120]
[343034382,1732299046865,-500.0,0.00083399,120]
[343034383,1732299046874,-500.0,0.00083399,120]
[343034384,1732299046883,-500.0,0.00083399,120]
[343034385,1732299046892,-500.0,0.00083399,120]
[343034386,1732299046901,-500.0,0.00083399,120]
[343034387,1732299046911,-500.0,0.00083399,120]
[343034388,1732299046921,-502.80840801,0.00083399,120]
[343034389,1732299046930,-500.0,0.00083399,120]
[343034390,1732299046939,-500.0,0.00083399,120]
[343034391,1732299046948,-500.0,0.00083399,120]
[343034392,1732299046958,-500.0,0.00083399,120]
[343034393,1732299046967,-150.0,0.00083399,120]
[343034394,1732299046981,-500.0,0.00083399,120]
[343034395,1732299046997,-500.0,0.00083399,120]
[343034396,1732299047007,-504.93306293,0.00083399,120]
[343034397,1732299047021,-501.1038214,0.00083399,120]
[343034398,1732299047030,-503.15120443,0.00083399,120]
[343034399,1732299047039,-5015.30550413,0.00083399,120]
[343034400,1732299047048,-500.0,0.00083399,120]
[343034401,1732299047057,-500.0,0.00083399,120]
[343034402,1732299047066,-500.0,0.00083399,120]
[343034403,1732299047076,-501.4328405,0.00083399,120]
[343034404,1732299047086,-503.14517003,0.00083399,120]
[343034405,1732299047095,-503.02381556,0.00083399,120]
[343034406,1732299047105,-503.08280904,0.00083399,120]
[343034407,1732299047120,-500.0,0.00083399,120]
[343034408,1732299047136,-502.61905375,0.00083399,120]
[343034409,1732299047146,-500.0,0.00083399,120]
[343034410,1732299047155,-500.0,0.00083399,120]
[343034411,1732299047164,-500.0,0.00083399,120]
[343034412,1732299047177,-500.0,0.00083399,120]
[343034413,1732299047186,-500.0,0.00083399,120]
[343034414,1732299047195,-500.0,0.00083399,120]
[343034415,1732299047204,-500.0,0.00083399,120]
[343034416,1732299047213,-500.0,0.00083399,120]
[343034417,1732299047223,-500.71021748,0.00083399,120]
[343034418,1732299047233,-502.51693999,0.00083399,120]
[343034419,1732299047242,-500.0,0.00083399,120]
[343034420,1732299047252,-500.0,0.00083399,120]
[343034421,1732299047265,-484.46059212,0.00083399,120]
[343034422,1732299047274,-500.0,0.00083399,120]
[343034423,1732299047283,-500.0,0.00083399,120]
[343034424,1732299047293,-305.73942662,0.00083399,120]
[343034425,1732299047301,-500.0,0.00083399,120]
[343034426,1732299047311,-264.67378605,0.00083399,120]
[343034427,1732299047320,-500.0,0.00083399,120]
[343034428,1732299047329,-500.0,0.00083399,120]
[343034429,1732299047338,-500.0,0.00083399,120]
[343034430,1732299047347,-500.0,0.00083399,120]
[343034431,1732299047356,-500.0,0.00083399,120]
[343034432,1732299047366,-598.32,0.00083399,120]
[343034433,1732299047375,-500.0,0.00083399,120]
[343034434,1732299047384,-500.0,0.00083399,120]
[343034435,1732299047394,-500.0,0.00083399,120]
[343034436,1732299047403,-500.0,0.00083399,120]
[343034437,1732299047412,-500.0,0.00083399,120]
[343034438,1732299047422,-500.45382805,0.00083399,120]
[343034439,1732299047431,-500.0,0.00083399,120]
[343034440,1732299047441,-500.0,0.00083399,120]
[343034441,1732299047451,-500.65873671,0.00083399,120]
[343034442,1732299047461,-150.22701482,0.00083399,120]
[343034443,1732299047471,-223.18215992,0.00083399,120]
[343034444,1732299047480,-500.0,0.00083399,120]
[343034445,1732299047489,-500.0,0.00083399,120]
[343034446,1732299047498,-500.0,0.00083399,120]
[343034447,1732299047508,-500.0,0.00083399,120]
[343034448,1732299047521,-500.0,0.00083399,120]
[343034449,1732299047531,-500.509557,0.00083399,120]
[343034450,1732299047540,-500.0,0.00083399,120]
[343034451,1732299047549,-501.31762008,0.00083399,120]
[343034452,1732299047559,-500.0,0.00083399,120]
[343034453,1732299047568,-503.29389944,0.00083399,120]
[343034454,1732299047577,-500.0,0.00083399,120]
[343034455,1732299047586,-500.0,0.00083399,120]
[343034456,1732299047595,-761.2,0.00083399,120]
[343034457,1732299047604,-631.18,0.00083399,120]
[343034458,1732299047613,-50000.0,0.000834,120]
[343034459,1732299047624,-1000.0,0.00083418,120]
[343034460,1732299047633,-1701.39,0.00083497,120]
[343034461,1732299047643,-500.0,0.00083497,120]
[343034462,1732299047652,-500.0,0.00083497,120]
[343034463,1732299047662,-1575.72,0.00083497,120]
[343034464,1732299047671,-500.0,0.00083497,120]
[343034465,1732299047681,-2604.77,0.00083497,120]
[343034466,1732299047691,-25598.4224121,0.00083497,12]
[343034467,1732299047700,-500.0,0.00083518,2]
[343034468,1732299047710,-166.6,0.00083723,30]
[343034469,1732299047720,-1135.38131537,0.000839,15]
[343034470,1732299047729,-1600.0,0.000839,30]
[343034471,1732299047739,-21659.336817,0.0008399,10]
[343034472,1732299047748,-3000.0,0.00084,120]
[343034473,1732299047758,-10000.0,0.00084,120]
[343034474,1732299047769,-29700.0,0.00084,120]
[343034475,1732299047779,-25598.4224121,0.00084222,12]
[343034476,1732299047788,-21659.336817,0.0008437,10]
[343034477,1732299047798,-25598.4224121,0.0008438,12]
[343034478,1732299047808,-43318.673634,0.0008438,10]
[343034479,1732299047818,-2111.0,0.0008439,60]
[343034480,1732299047827,-76795.2672362,0.0008439,12]
[343034481,1732299047837,-86637.347268,0.0008439,10]
[343034482,1732299047847,-500.0,0.00084399,120]
[343034483,1732299047857,-500.0,0.00084399,120]
[343034484,1732299047868,-500.0,0.00084399,120]
[343034485,1732299047878,-500.0,0.00084399,120]
[343034486,1732299047887,-500.0,0.00084399,120]
[343034487,1732299047898,-775.44,0.00084399,120]
[343034488,1732299047908,-500.0,0.00084399,120]
[343034489,1732299047917,-500.0,0.00084399,120]
[343034490,1732299047927,-1568.1,0.00084399,120]
[343034491,1732299047936,-500.0,0.00084399,21]
[343034492,1732299047946,-2581.29,0.00084399,120]
[343034493,1732299047955,-500.0,0.00084399,120]
[343034494,1732299047964,-530.3,0.00084399,120]
[343034495,1732299047973,-3408.18,0.00084399,120]
[343034496,1732299047982,-500.0,0.00084399,120]
[343034497,1732299047991,-500.0,0.00084399,120]
[343034498,1732299048000,-418.81119603,0.00084399,120]
[343034499,1732299048142,-81.18880397,0.00084399,120]
[343034500,1732299048152,-315.80119603,0.00084399,120]
[343034501,1732299048163,-184.19880397,0.00084399,120]
[343034502,1732299048172,-1701.39,0.00084399,120]
[343034503,1732299048181,-91.89119363,0.00084399,120]
[343034505,1732299454577,160.06,0.00041096,2]
[343034506,1732299461082,-500.0,0.00059699,12]
[343034507,1732299461107,-300.0,0.00059999,15]
[343034508,1732299461132,-22245.34663006,0.0006,120]
[343034515,1732299749991,-500.0,0.0006,120]
[343034516,1732299750015,-3272.94171808,0.0006,120]
[343034517,1732299830687,-50000.0,0.00065,120]
[343034518,1732300103761,434.54360001,0.0006,120]
[343034520,1732300120160,6341.27109794,0.00025,7]
[343034521,1732300123624,3379.5885141,0.00045592,30]
[343034523,1732300124990,7242.75,0.0004,10]
[343034540,1732300231893,-1366.0773419,0.0006064,120]
[343034541,1732300231903,-206.827,0.0006636,120]
[343034542,1732300231912,-206.849,0.0006991,120]
[343034543,1732300231922,-150.0,0.00072703,2]
[343034544,1732300231932,-206.811,0.0007346,120]
[343034545,1732300231940,-152.59,0.00076838,2]
[343034546,1732300231950,-150.62278138,0.0007701,120]
[343034547,1732300231962,-56.22321862,0.0007701,120]
[343034548,1732300231972,-164.7,0.00078756,120]
[343034549,1732300231981,-300.0,0.00078756,2]
[343034550,1732300231995,-204.91,0.00078765,120]
[343034551,1732300232005,-306.25,0.00079004,120]
[343034552,1732300232015,-152.59,0.00079102,2]
[343034553,1732300232024,-1071.0292,0.000792,120]
[343034554,1732300232034,-1495.99578672,0.0007929,2]
[343034555,1732300232044,-36.53349915,0.00079299,30]
[343034556,1732300232055,-282.68689655,0.00079299,30]
[343034557,1732300232066,-129.7796043,0.00079299,30]
[343034558,1732300232076,-126.63304039,0.00079299,20]
[343034559,1732300232096,-23.36695961,0.00079299,20]
[343034560,1732300232105,-629.36216305,0.000793,20]
[343034561,1732300232117,-370.62783695,0.000793,20]
[343034562,1732300232126,-1597.20092132,0.000793,30]
[343034563,1732300232167,-788.77097166,0.000793,30]
[343034564,1732300232178,-3313.166,0.000793,30]
[343034565,1732300232190,-956.71339648,0.000793,30]
[343034566,1732300232201,-18613.50871054,0.000793,30]
[343034567,1732300232211,-375.29,0.000793,2]
[343034568,1732300232220,-9999.99,0.000793,2]
[343034569,1732300232229,-299.99,0.000793,120]
[343034570,1732300232241,-305.49,0.000793,2]
[343034571,1732300232251,-150.99,0.000793,31]
[343034572,1732300232260,-325.94,0.000793,30]
[343034573,1732300232270,-9999.99,0.000793,2]
[343034574,1732300232279,-150.99,0.000793,2]
[343034575,1732300232289,-479.24,0.000793,10]
[343034576,1732300232298,-560.1,0.000793,2]
[343034577,1732300232307,-500.0,0.00079305,2]
[343034578,1732300232317,-210.86,0.00079384,30]
[343034579,1732300232326,-500.0,0.00079399,120]
[343034580,1732300232335,-403.37188969,0.00079399,120]
[343034581,1732300232344,-50000.0,0.000794,120]
[343034582,1732300232353,-250.0,0.00079535,120]
[343034583,1732300232362,-1571.305,0.000799,2]
[343034584,1732300232371,-5784.8889,0.000799,2]
[343034585,1732300232380,-1000.0,0.000799,2]
[343034586,1732300232390,-8992.571,0.000799,2]
[343034587,1732300232400,-2500.0,0.000799,2]
[343034588,1732300232409,-200.0,0.00079944,2]
[343034589,1732300232418,-500.0,0.00079999,120]
[343034590,1732300232427,-500.0,0.00079999,120]
[343034591,1732300232436,-3475.96,0.00079999,120]
[343034592,1732300232445,-500.0,0.00079999,120]
[343034593,1732300232454,-500.0,0.00079999,120]
[343034594,1732300232464,-1247.45,0.00079999,120]
[343034595,1732300232473,-500.0,0.00079999,120]
[343034596,1732300232483,-500.0,0.00079999,120]
[343034597,1732300232496,-500.0,0.00079999,120]
[343034598,1732300232505,-500.0,0.00079999,120]
[343034599,1732300232514,-500.0,0.00079999,120]
[343034600,1732300232523,-500.0,0.00079999,120]
[343034601,1732300232532,-500.0,0.00079999,120]
[343034602,1732300232541,-500.0,0.00079999,120]
[343034603,1732300232550,-500.0,0.00079999,120]
[343034604,1732300232559,-500.0,0.00079999,120]
[343034605,1732300232568,-154809.0,0.0008,2]
[343034606,1732300232577,-13392.286162,0.0008,30]
[343034607,1732300232587,-6855.69660931,0.0008,12]
[343034608,1732300232595,-250.0,0.00080183,120]
[343034609,1732300232604,-250.0,0.00080274,120]
[343034610,1732300232614,-24371.601149,0.00080389,11]
[343034611,1732300232623,-24371.601149,0.0008039,11]
[343034612,1732300232632,-895.187,0.00080399,120]
[343034613,1732300232641,-176.924,0.00080399,120]
[343034614,1732300232651,-500.61728173,0.00080399,120]
[343034615,1732300232660,-501.81917128,0.00080399,120]
[343034616,1732300232669,-500.0,0.00080399,120]
[343034617,1732300232678,-631.59646622,0.00080399,120]
[343034618,1732300232686,-517.36681888,0.00080399,120]
[343034619,1732300232695,-500.0,0.00080399,120]
[343034620,1732300232704,-502.13327748,0.00080399,120]
[343034621,1732300232712,-500.89870052,0.00080399,120]
[343034622,1732300232721,-501.43839066,0.00080399,120]
[343034623,1732300232730,-500.0,0.00080399,120]
[343034624,1732300232741,-501.70941096,0.00080399,120]
[343034625,1732300232750,-502.23185227,0.00080399,120]
[343034626,1732300232759,-500.0,0.00080399,120]
[343034627,1732300232768,-501.58800205,0.00080399,120]
[343034628,1732300232777,-500.0,0.00080399,120]
[343034629,1732300232786,-500.0,0.00080399,120]
[343034630,1732300232796,-501.25907446,0.00080399,120]
[343034631,1732300232805,-500.0,0.00080399,120]
[343034632,1732300232814,-500.0,0.00080399,120]
[343034633,1732300232824,-501.28328149,0.00080399,120]
[343034634,1732300232833,-501.43926682,0.00080399,120]
[343034635,1732300232842,-501.86887696,0.00080399,120]
[343034636,1732300232851,-500.4272868,0.00080399,120]
[343034637,1732300232860,-501.61493729,0.00080399,120]
[343034638,1732300232869,-502.24480222,0.00080399,120]
[343034639,1732300232879,-500.42537966,0.00080399,120]
[343034640,1732300232892,-500.77897049,0.00080399,120]
[343034641,1732300232901,-500.0,0.00080399,120]
[343034642,1732300232910,-501.81799323,0.00080399,120]
[343034643,1732300232921,-501.24837892,0.00080399,120]
[343034644,1732300232930,-500.73358678,0.00080399,120]
[343034645,1732300232939,-502.62450449,0.00080399,120]
[343034646,1732300232949,-501.0722523,0.00080399,120]
[343034647,1732300232960,-501.67997191,0.00080399,120]
[343034648,1732300232969,-500.48727087,0.00080399,120]
[343034649,1732300232978,-500.35401237,0.00080399,120]
[343034650,1732300232987,-500.0,0.00080399,120]
[343034651,1732300232998,-500.4659284,0.00080399,120]
[343034652,1732300233007,-501.05679605,0.00080399,120]
[343034653,1732300233017,-502.56459039,0.00080399,120]
[343034654,1732300233028,-501.17312576,0.00080399,120]
[343034655,1732300233038,-502.80147471,0.00080399,120]
[343034656,1732300233048,-500.0,0.00080399,120]
[343034657,1732300233058,-500.0,0.00080399,120]
[343034658,1732300233067,-500.0,0.00080399,120]
[343034659,1732300233076,-320.76903945,0.00080399,120]
[343034660,1732300233086,-501.0942527,0.00080399,120]
[343034661,1732300233095,-500.35402305,0.00080399,120]
[343034662,1732300233105,-500.92782931,0.00080399,120]
[343034663,1732300233115,-501.18823099,0.00080399,120]
[343034664,1732300233128,-501.66186098,0.00080399,120]
[343034665,1732300233139,-499.97102445,0.00080399,120]
[343034666,1732300233149,-500.0,0.00080399,120]
[343034667,1732300233159,-500.42737017,0.00080399,120]
[343034668,1732300233169,-501.56800779,0.00080399,120]
[343034669,1732300233179,-500.84618321,0.00080399,120]
[343034670,1732300233189,-500.0,0.00080399,120]
[343034671,1732300233200,-500.87305661,0.00080399,120]
[343034672,1732300233210,-500.62472791,0.00080399,120]
[343034673,1732300233219,-501.06000301,0.00080399,120]
[343034674,1732300233230,-501.28084253,0.00080399,120]
[343034675,1732300233241,-500.0,0.00080399,120]
[343034676,1732300233251,-501.38793748,0.00080399,120]
[343034677,1732300233261,-500.0,0.00080399,120]
[343034678,1732300233271,-500.0,0.00080399,120]
[343034679,1732300233281,-500.0,0.00080399,120]
[343034680,1732300233291,-500.0,0.00080399,120]
[343034681,1732300233302,-500.0,0.00080399,120]
[343034682,1732300233312,-500.0,0.00080399,120]
[343034683,1732300233321,-235.76229817,0.00080399,120]
[343034684,1732300233331,-500.0,0.00080399,120]
[343034685,1732300233340,-500.0,0.00080399,21]
[343034686,1732300233350,-2258.62,0.00080399,120]
[343034687,1732300233359,-500.0,0.00080399,120]
[343034688,1732300233369,-500.0,0.00080399,120]
[343034689,1732300233378,-2982.15,0.00080399,120]
[343034690,1732300233387,-500.0,0.00080399,120]
[343034691,1732300233397,-502.85438161,0.00080399,120]
[343034692,1732300233406,-500.0,0.00080399,120]
[343034693,1732300233415,-500.0,0.00080399,120]
[343034694,1732300233424,-500.0,0.00080399,120]
[343034695,1732300233433,-500.0,0.00080399,120]
[343034696,1732300233443,-458.80918232,0.00080399,120]
[343034697,1732300233452,-1138.42,0.00080399,120]
[343034698,1732300233461,-500.0,0.00080399,120]
[343034699,1732300233470,-262.00781238,0.00080399,120]
[343034700,1732300233479,-628.98,0.00080399,120]
[343034701,1732300233491,-502.79952059,0.00080399,120]
[343034702,1732300233501,-500.0,0.00080399,7]
[343034703,1732300233511,-500.0,0.00080399,120]
[343034704,1732300233521,-500.0,0.00080399,120]
[343034705,1732300233533,-500.0,0.00080399,120]
[343034706,1732300233544,-50000.0,0.000804,120]
[343034707,1732300233554,-1000.0,0.00080501,120]
[343034708,1732300233564,-206.837,0.0008056,120]
[343034709,1732300233574,-4181.84,0.00080859,2]
[343034710,1732300233584,-226.6,0.00080986,120]
[343034711,1732300233595,-212.22088718,0.00081029,52]
[343034712,1732300233606,-24371.601149,0.00081119,11]
[343034713,1732300233617,-500.0,0.00081128,120]
[343034714,1732300233628,-500.0,0.00081128,120]
[343034715,1732300233638,-500.0,0.00081128,120]
[343034716,1732300233649,-500.0,0.00081128,120]
[343034717,1732300233659,-329.45580545,0.00081128,120]
[343034718,1732300233669,-500.0,0.00081128,120]
[343034719,1732300233679,-168.0,0.00081129,120]
[343034720,1732300233690,-500.0,0.00081129,120]
[343034721,1732300233700,-545.57177968,0.00081129,120]
[343034722,1732300233710,-500.0,0.00081129,120]
[343034723,1732300233720,-500.0,0.00081129,120]
[343034724,1732300233730,-500.0,0.00081129,120]
[343034725,1732300233741,-500.0,0.00081129,120]
[343034726,1732300233751,-500.0,0.00081129,120]
[343034727,1732300233761,-500.0,0.00081129,120]
[343034728,1732300233773,-500.0,0.00081129,120]
[343034729,1732300233782,-500.0,0.00081129,120]
[343034730,1732300233792,-500.0,0.00081129,120]
[343034731,1732300233802,-539.94166958,0.00081129,120]
[343034732,1732300233811,-500.0,0.00081129,120]
[343034733,1732300233821,-500.0,0.00081129,120]
[343034734,1732300233830,-500.0,0.00081129,120]
[343034735,1732300233840,-500.0,0.00081129,120]
[343034736,1732300233850,-500.0,0.00081129,120]
[343034737,1732300233860,-500.0,0.00081129,120]
[343034738,1732300233870,-500.0,0.00081129,120]
[343034739,1732300233880,-500.0,0.00081129,120]
[343034740,1732300233895,-500.0,0.00081129,120]
[343034741,1732300233904,-500.0,0.00081129,120]
[343034742,1732300233914,-500.0,0.00081129,120]
[343034743,1732300233924,-500.0,0.00081129,120]
[343034744,1732300233934,-500.0,0.00081129,120]
[343034745,1732300233944,-525.84635953,0.00081129,120]
[343034746,1732300233955,-500.0,0.00081129,120]
[343034747,1732300233965,-500.0,0.00081129,120]
[343034748,1732300233976,-500.0,0.00081129,120]
[343034749,1732300233986,-500.0,0.00081129,120]
[343034750,1732300233999,-500.0,0.00081129,120]
[343034751,1732300234009,-500.0,0.00081129,120]
[343034752,1732300234127,-500.0,0.00081129,120]
[343034753,1732300234138,-500.0,0.00081129,120]
[343034754,1732300234148,-500.0,0.00081129,120]
[343034755,1732300234159,-500.0,0.00081129,120]
[343034756,1732300234168,-500.0,0.00081129,120]
[343034757,1732300234178,-500.0,0.00081129,120]
[343034758,1732300234188,-500.0,0.00081129,120]
[343034759,1732300234198,-502.24856653,0.00081129,120]
[343034760,1732300234208,-500.0,0.00081129,120]
[343034761,1732300234218,-500.0,0.00081129,120]
[343034762,1732300234227,-500.0,0.00081129,120]
[343034763,1732300234237,-500.0,0.00081129,120]
[343034764,1732300234250,-500.0,0.00081129,120]
[343034765,1732300234260,-502.22967639,0.00081129,120]
[343034766,1732300234270,-327.20880656,0.00081129,120]
[343034767,1732300234280,-500.0,0.00081129,120]
[343034768,1732300234289,-500.0,0.00081129,120]
[343034769,1732300234299,-500.0,0.00081129,120]
[343034770,1732300234309,-500.0,0.00081129,120]
[343034771,1732300234318,-500.0,0.00081129,120]
[343034772,1732300234328,-500.0,0.00081129,120]
[343034773,1732300234337,-500.0,0.00081129,120]
[343034774,1732300234347,-500.0,0.00081129,120]
[343034775,1732300234357,-505.51653192,0.00081129,120]
[343034776,1732300234366,-500.0,0.00081129,120]
[343034777,1732300234376,-505.07223869,0.00081129,120]
[343034778,1732300234386,-500.0,0.00081129,120]
[343034779,1732300234395,-500.0,0.00081129,120]
[343034780,1732300234404,-2145.04,0.00081129,120]
[343034781,1732300234414,-633.80313334,0.00081129,120]
[343034782,1732300234423,-500.0,0.00081129,120]
[343034783,1732300234433,-500.0,0.00081129,120]
[343034784,1732300234446,-500.0,0.00081129,120]
[343034785,1732300234456,-500.0,0.00081129,120]
[343034786,1732300234466,-500.0,0.00081129,120]
[343034787,1732300234475,-500.0,0.00081129,120]
[343034788,1732300234485,-916.84,0.00081129,120]
[343034789,1732300234497,-500.0,0.00081129,120]
[343034790,1732300234506,-502.00998,0.00081129,120]
[343034791,1732300234516,-500.0,0.00081129,120]
[343034792,1732300234526,-500.0,0.00081129,120]
[343034793,1732300234536,-500.0,0.00081129,2]
[343034794,1732300234546,-500.0,0.00081129,120]
[343034795,1732300234555,-500.0,0.00081129,120]
[343034796,1732300234564,-500.0,0.00081129,120]
[343034797,1732300234574,-520.68825092,0.00081129,120]
[343034798,1732300234583,-224.66830477,0.00081129,120]
[343034799,1732300234593,-500.0,0.00081129,120]
[343034800,1732300234603,-500.0,0.00081129,120]
[343034801,1732300234612,-500.0,0.00081129,120]
[343034802,1732300234621,-1420.01,0.00081129,120]
[343034803,1732300234631,-500.0,0.00081129,120]
[343034804,1732300234642,-568.90072044,0.00081129,120]
[343034805,1732300234651,-500.0,0.00081129,120]
[343034806,1732300234660,-500.0,0.00081129,120]
[343034807,1732300234670,-500.0,0.00081129,120]
[343034808,1732300234679,-500.0,0.00081129,120]
[343034809,1732300234688,-500.0,0.00081129,120]
[343034810,1732300234697,-2749.16,0.00081129,120]
[343034811,1732300234707,-500.0,0.00081129,120]
[343034812,1732300234716,-1636.59,0.00081129,120]
[343034813,1732300234725,-500.0,0.00081129,120]
[343034814,1732300234735,-500.0,0.00081129,120]
[343034815,1732300234746,-500.0,0.00081129,120]
[343034816,1732300234755,-500.0,0.00081129,120]
[343034817,1732300234766,-1000.0,0.00081129,120]